[Event "*** SCC Grand Prix: Titled Tuesday Blitz"]
[Site "Chess.com"]
[Date "2020.08.25"]
[Round "5"]
[White "Jovidon91"]
[Black "krasavetc"]
[Result "1-0"]
[WhiteElo "2468"]
[BlackElo "2300"]
[TimeControl "180+1"]
[EndTime "10:53:11 PDT"]
[Termination "Jovidon91 won by resignation"]

1. d4 {[%clk 0:03:00.6]} 1... Nf6 {[%clk 0:02:57.5]} 2. Nc3 {[%clk 0:02:58.4]}
2... e6 {[%clk 0:02:56.8]} 3. e4 {[%clk 0:02:54.9]} 3... d5 {[%clk 0:02:56.6]}
4. exd5 {[%clk 0:02:55.8]} 4... exd5 {[%clk 0:02:55.1]} 5. Bd3 {[%clk 0:02:56]}
5... h6 {[%clk 0:02:48]} 6. Nge2 {[%clk 0:02:56]} 6... Bd6 {[%clk 0:02:43.8]} 7.
O-O {[%clk 0:02:56.5]} 7... c6 {[%clk 0:02:44.2]} 8. Ng3 {[%clk 0:02:56.6]} 8...
O-O {[%clk 0:02:38.9]} 9. Nf5 {[%clk 0:02:56.5]} 9... Bxf5 {[%clk 0:02:37.2]}
10. Bxf5 {[%clk 0:02:57.4]} 10... Re8 {[%clk 0:02:34.8]} 11. Ne2 {[%clk
0:02:55.6]} 11... Ne4 {[%clk 0:02:32.1]} 12. Ng3 {[%clk 0:02:52.9]} 12... Nd7
{[%clk 0:02:17.4]} 13. Bxh6 {[%clk 0:02:30]} 13... gxh6 {[%clk 0:02:11.9]} 14.
Qg4+ {[%clk 0:02:28.8]} 14... Kf8 {[%clk 0:01:47.6]} 15. Bxd7 {[%clk 0:02:25.3]}
15... Nf6 {[%clk 0:01:46.7]} 16. Qh4 {[%clk 0:02:25.4]} 16... Nxd7 {[%clk
0:01:32.5]} 17. Qxh6+ {[%clk 0:02:25.4]} 17... Kg8 {[%clk 0:01:31.4]} 18. Qxd6
{[%clk 0:02:25.3]} 1-0

[Event "*** SCC Grand Prix: Titled Tuesday Blitz"]
[Site "Chess.com"]
[Date "2020.08.25"]
[Round "5"]
[White "laboratorio25"]
[Black "grandcoach"]
[Result "1-0"]
[WhiteElo "2356"]
[BlackElo "2090"]
[TimeControl "180+1"]
[EndTime "10:53:28 PDT"]
[Termination "laboratorio25 won by checkmate"]

1. e4 {[%clk 0:03:00.9]} 1... c5 {[%clk 0:02:59]} 2. Nf3 {[%clk 0:03:00.5]} 2...
Nc6 {[%clk 0:02:58]} 3. d4 {[%clk 0:03:01]} 3... cxd4 {[%clk 0:02:58.6]} 4. Nxd4
{[%clk 0:03:01.9]} 4... e5 {[%clk 0:02:58.6]} 5. Nb5 {[%clk 0:03:01.2]} 5... d6
{[%clk 0:02:57.9]} 6. c4 {[%clk 0:02:57.4]} 6... Be7 {[%clk 0:02:54.8]} 7. N1c3
{[%clk 0:02:55.4]} 7... a6 {[%clk 0:02:52.9]} 8. Na3 {[%clk 0:02:55.5]} 8... f5
{[%clk 0:02:53.5]} 9. exf5 {[%clk 0:02:54.4]} 9... Bxf5 {[%clk 0:02:54.4]} 10.
Bd3 {[%clk 0:02:54.5]} 10... Be6 {[%clk 0:02:54.6]} 11. O-O {[%clk 0:02:53.6]}
11... Nf6 {[%clk 0:02:55.2]} 12. Nc2 {[%clk 0:02:51.9]} 12... O-O {[%clk
0:02:55.7]} 13. Ne3 {[%clk 0:02:46.8]} 13... Rc8 {[%clk 0:02:54.9]} 14. b3
{[%clk 0:02:46.8]} 14... Nd4 {[%clk 0:02:51.4]} 15. Ne2 {[%clk 0:02:44.9]} 15...
Nxe2+ {[%clk 0:02:41.5]} 16. Qxe2 {[%clk 0:02:45.8]} 16... d5 {[%clk 0:02:40.3]}
17. cxd5 {[%clk 0:02:44.7]} 17... Nxd5 {[%clk 0:02:37]} 18. Nxd5 {[%clk
0:02:44.6]} 18... Bxd5 {[%clk 0:02:33.4]} 19. Bb2 {[%clk 0:02:39.6]} 19... Bd6
{[%clk 0:02:15.1]} 20. Bxh7+ {[%clk 0:02:20.2]} 20... Kxh7 {[%clk 0:02:12.7]}
21. Qd3+ {[%clk 0:02:16.5]} 21... e4 {[%clk 0:02:06.5]} 22. Qh3+ {[%clk
0:02:16.3]} 22... Kg8 {[%clk 0:02:03.6]} 23. Rad1 {[%clk 0:02:16]} 23... Qg5
{[%clk 0:01:55]} 24. Qd7 {[%clk 0:02:07.6]} 24... Rc6 {[%clk 0:01:44.1]} 25.
Rxd5 {[%clk 0:02:06.1]} 25... Qxd5 {[%clk 0:01:40.8]} 26. Qxg7# {[%clk
0:02:05.6]} 1-0

[Event "*** SCC Grand Prix: Titled Tuesday Blitz"]
[Site "Chess.com"]
[Date "2020.08.25"]
[Round "5"]
[White "winniethepooh04"]
[Black "ChainsOfFantasia"]
[Result "0-1"]
[WhiteElo "2159"]
[BlackElo "2476"]
[TimeControl "180+1"]
[EndTime "10:53:33 PDT"]
[Termination "ChainsOfFantasia won by resignation"]

1. e4 {[%clk 0:03:00.9]} 1... e6 {[%clk 0:02:59]} 2. d4 {[%clk 0:03:00.5]} 2...
d5 {[%clk 0:02:59.9]} 3. Nd2 {[%clk 0:03:00]} 3... c5 {[%clk 0:02:59.4]} 4. exd5
{[%clk 0:03:00.1]} 4... Qxd5 {[%clk 0:03:00.3]} 5. Ngf3 {[%clk 0:02:59.9]} 5...
cxd4 {[%clk 0:03:00.2]} 6. Bc4 {[%clk 0:03:00]} 6... Qd7 {[%clk 0:03:01.1]} 7.
O-O {[%clk 0:03:00]} 7... Nc6 {[%clk 0:03:01.7]} 8. Nb3 {[%clk 0:02:59.8]} 8...
a6 {[%clk 0:03:02.6]} 9. Nbxd4 {[%clk 0:02:59.8]} 9... Nxd4 {[%clk 0:03:03.5]}
10. Nxd4 {[%clk 0:02:59.6]} 10... Qc7 {[%clk 0:03:03.9]} 11. Bb3 {[%clk
0:02:59.2]} 11... Nf6 {[%clk 0:03:04.4]} 12. c3 {[%clk 0:02:59.6]} 12... Bd6
{[%clk 0:03:04.4]} 13. h3 {[%clk 0:02:58.2]} 13... O-O {[%clk 0:03:04.6]} 14. a4
{[%clk 0:02:55.8]} 14... b6 {[%clk 0:03:04.3]} 15. Bg5 {[%clk 0:02:54.9]} 15...
Bh2+ {[%clk 0:03:03]} 16. Kh1 {[%clk 0:02:54.2]} 16... Bf4 {[%clk 0:03:03.9]}
17. Bxf6 {[%clk 0:02:53.7]} 17... gxf6 {[%clk 0:03:04.8]} 18. Qg4+ {[%clk
0:02:53.3]} 18... Kh8 {[%clk 0:03:04.9]} 19. Bc2 {[%clk 0:02:51]} 19... f5
{[%clk 0:03:04.2]} 20. Qh5 {[%clk 0:02:48.7]} 20... Bb7 {[%clk 0:03:03]} 21. f3
{[%clk 0:02:44.6]} 21... Rg8 {[%clk 0:03:00.8]} 22. Rae1 {[%clk 0:02:39.9]}
22... Rg5 {[%clk 0:02:59.1]} 23. Qh4 {[%clk 0:02:38.8]} 23... Rag8 {[%clk
0:02:57.4]} 24. Ne2 {[%clk 0:02:28.6]} 24... Rxg2 {[%clk 0:02:24.2]} 25. Nxf4
{[%clk 0:02:17.6]} 25... Rxc2 {[%clk 0:02:23.5]} 26. Qf6+ {[%clk 0:02:16.7]}
26... Rg7 {[%clk 0:02:22.4]} 27. Rd1 {[%clk 0:01:40.1]} 27... Rh2+ {[%clk
0:02:21.9]} 28. Kxh2 {[%clk 0:01:38.7]} 28... Qxf4+ {[%clk 0:02:22.8]} 29. Kh1
{[%clk 0:01:36.3]} 29... Bxf3+ {[%clk 0:02:23.7]} 0-1

[Event "*** SCC Grand Prix: Titled Tuesday Blitz"]
[Site "Chess.com"]
[Date "2020.08.25"]
[Round "5"]
[White "MuradNuri"]
[Black "cassoulet"]
[Result "0-1"]
[WhiteElo "2473"]
[BlackElo "2708"]
[TimeControl "180+1"]
[EndTime "10:53:35 PDT"]
[Termination "cassoulet won by resignation"]

1. e4 {[%clk 0:03:00.9]} 1... c5 {[%clk 0:02:59.6]} 2. Nf3 {[%clk 0:03:00.3]}
2... Nc6 {[%clk 0:03:00]} 3. d4 {[%clk 0:02:58]} 3... cxd4 {[%clk 0:03:00.9]} 4.
Nxd4 {[%clk 0:02:58.9]} 4... Nf6 {[%clk 0:03:00]} 5. Nc3 {[%clk 0:02:59.2]} 5...
e6 {[%clk 0:03:00.5]} 6. a3 {[%clk 0:02:58.5]} 6... Bc5 {[%clk 0:02:48.8]} 7.
Nxc6 {[%clk 0:02:56]} 7... bxc6 {[%clk 0:02:49.7]} 8. e5 {[%clk 0:02:56.1]} 8...
Nd5 {[%clk 0:02:45.9]} 9. Ne4 {[%clk 0:02:56.5]} 9... Be7 {[%clk 0:02:45.4]} 10.
c4 {[%clk 0:02:56.6]} 10... Nb6 {[%clk 0:02:44.2]} 11. Bd3 {[%clk 0:02:54.5]}
11... c5 {[%clk 0:02:40.2]} 12. O-O {[%clk 0:02:53.8]} 12... Bb7 {[%clk
0:02:40.3]} 13. Qg4 {[%clk 0:02:53.6]} 13... Kf8 {[%clk 0:02:29.4]} 14. Bf4
{[%clk 0:02:36.5]} 14... Nxc4 {[%clk 0:02:18.9]} 15. Nxc5 {[%clk 0:02:22.5]}
15... Bxc5 {[%clk 0:02:02.8]} 16. Bxc4 {[%clk 0:02:20.1]} 16... h5 {[%clk
0:02:02.8]} 17. Qe2 {[%clk 0:02:11.4]} 17... Qh4 {[%clk 0:01:55.2]} 18. Bg3
{[%clk 0:01:51.7]} 18... Qg5 {[%clk 0:01:54.9]} 19. b4 {[%clk 0:01:46.3]} 19...
Bb6 {[%clk 0:01:54.7]} 20. h4 {[%clk 0:01:41.1]} 20... Qxg3 {[%clk 0:01:53.4]}
0-1

[Event "*** SCC Grand Prix: Titled Tuesday Blitz"]
[Site "Chess.com"]
[Date "2020.08.25"]
[Round "5"]
[White "XiaoKangZhong"]
[Black "jacky72"]
[Result "1-0"]
[WhiteElo "2426"]
[BlackElo "2539"]
[TimeControl "180+1"]
[EndTime "10:53:52 PDT"]
[Termination "XiaoKangZhong won by checkmate"]

1. e4 {[%clk 0:03:00.9]} 1... e5 {[%clk 0:02:59.2]} 2. Nf3 {[%clk 0:02:58.2]}
2... Nc6 {[%clk 0:03:00.1]} 3. Bc4 {[%clk 0:02:57.9]} 3... Bc5 {[%clk
0:02:59.7]} 4. c3 {[%clk 0:02:58]} 4... Nf6 {[%clk 0:03:00.1]} 5. d3 {[%clk
0:02:58.4]} 5... d6 {[%clk 0:03:00.5]} 6. Nbd2 {[%clk 0:02:58.6]} 6... a6 {[%clk
0:03:00.9]} 7. Bb3 {[%clk 0:02:57.4]} 7... h6 {[%clk 0:03:01.1]} 8. O-O {[%clk
0:02:57.3]} 8... Ba7 {[%clk 0:02:59.9]} 9. Re1 {[%clk 0:02:33.1]} 9... g5 {[%clk
0:03:00.8]} 10. Nf1 {[%clk 0:02:24.1]} 10... g4 {[%clk 0:03:00.9]} 11. Nh4
{[%clk 0:02:20.5]} 11... Nxe4 {[%clk 0:03:00.5]} 12. dxe4 {[%clk 0:02:11.6]}
12... Qxh4 {[%clk 0:03:00.8]} 13. Ng3 {[%clk 0:02:11.9]} 13... Be6 {[%clk
0:02:59.1]} 14. Bxe6 {[%clk 0:02:06.3]} 14... fxe6 {[%clk 0:02:57.4]} 15. Qb3
{[%clk 0:02:06.8]} 15... Kd7 {[%clk 0:02:57.6]} 16. Be3 {[%clk 0:02:02.2]} 16...
Bxe3 {[%clk 0:02:56.5]} 17. Rxe3 {[%clk 0:02:03.1]} 17... Qf6 {[%clk 0:02:55.9]}
18. Rd1 {[%clk 0:02:01.9]} 18... h5 {[%clk 0:02:55.9]} 19. Red3 {[%clk
0:02:00.6]} 19... h4 {[%clk 0:02:55.8]} 20. Nf1 {[%clk 0:02:01.2]} 20... Rhf8
{[%clk 0:02:52.5]} 21. R1d2 {[%clk 0:01:59.3]} 21... h3 {[%clk 0:02:52.7]} 22.
Qxb7 {[%clk 0:01:53.4]} 22... Nd4 {[%clk 0:02:47.3]} 23. Qb4 {[%clk 0:01:27.8]}
23... hxg2 {[%clk 0:02:42.9]} 24. Kxg2 {[%clk 0:01:26]} 24... Nf3 {[%clk
0:02:12.4]} 25. Rxd6+ {[%clk 0:01:12.7]} 25... cxd6 {[%clk 0:02:13.3]} 26. Qxd6+
{[%clk 0:01:12.5]} 26... Ke8 {[%clk 0:02:12.5]} 27. Qd7# {[%clk 0:01:12.4]} 1-0

[Event "*** SCC Grand Prix: Titled Tuesday Blitz"]
[Site "Chess.com"]
[Date "2020.08.25"]
[Round "5"]
[White "checkitas"]
[Black "chessplayer9919"]
[Result "0-1"]
[WhiteElo "2249"]
[BlackElo "2601"]
[TimeControl "180+1"]
[EndTime "10:54:04 PDT"]
[Termination "chessplayer9919 won by checkmate"]

1. d4 {[%clk 0:03:00.9]} 1... Nf6 {[%clk 0:02:59.7]} 2. c4 {[%clk 0:02:52.3]}
2... c5 {[%clk 0:02:59.6]} 3. d5 {[%clk 0:02:48.5]} 3... b5 {[%clk 0:02:58.8]}
4. cxb5 {[%clk 0:02:48.7]} 4... a6 {[%clk 0:02:58.5]} 5. bxa6 {[%clk 0:02:49.6]}
5... g6 {[%clk 0:02:57.8]} 6. Nc3 {[%clk 0:02:47.2]} 6... Bg7 {[%clk 0:02:56]}
7. Nf3 {[%clk 0:02:47.6]} 7... O-O {[%clk 0:02:46.7]} 8. g3 {[%clk 0:02:46.5]}
8... Qa5 {[%clk 0:02:45.9]} 9. Bd2 {[%clk 0:02:43.2]} 9... Bxa6 {[%clk 0:02:45]}
10. e4 {[%clk 0:02:36.2]} 10... d6 {[%clk 0:02:40.9]} 11. Be2 {[%clk 0:02:34.6]}
11... Nbd7 {[%clk 0:02:36]} 12. O-O {[%clk 0:02:32.4]} 12... Rfb8 {[%clk
0:02:35.3]} 13. Rb1 {[%clk 0:02:22]} 13... Bxe2 {[%clk 0:02:26.1]} 14. Qxe2
{[%clk 0:02:21]} 14... Qa6 {[%clk 0:02:26.3]} 15. Rfe1 {[%clk 0:01:58.9]} 15...
Ng4 {[%clk 0:02:20.5]} 16. Qxa6 {[%clk 0:01:18.8]} 16... Rxa6 {[%clk 0:02:21.4]}
17. Bg5 {[%clk 0:01:18.1]} 17... Kf8 {[%clk 0:02:19.9]} 18. h3 {[%clk
0:01:14.4]} 18... Nge5 {[%clk 0:02:20]} 19. Nxe5 {[%clk 0:01:12.1]} 19... Nxe5
{[%clk 0:02:20.9]} 20. Red1 {[%clk 0:01:11.2]} 20... Nf3+ {[%clk 0:02:20.6]} 21.
Kg2 {[%clk 0:01:10.6]} 21... Nxg5 {[%clk 0:02:21.5]} 22. f4 {[%clk 0:01:10.2]}
22... Bxc3 {[%clk 0:02:20.9]} 23. bxc3 {[%clk 0:01:08.5]} 23... Rxa2+ {[%clk
0:02:19.9]} 24. Kh1 {[%clk 0:01:07.7]} 24... Rxb1 {[%clk 0:02:19.9]} 25. Rxb1
{[%clk 0:01:08.6]} 25... Nxe4 {[%clk 0:02:20.5]} 26. Rb8+ {[%clk 0:01:06.3]}
26... Kg7 {[%clk 0:02:20.9]} 27. Rb7 {[%clk 0:01:07.2]} 27... Kf6 {[%clk
0:02:20.5]} 28. g4 {[%clk 0:01:06.6]} 28... Nxc3 {[%clk 0:02:20.4]} 29. g5+
{[%clk 0:01:06]} 29... Kf5 {[%clk 0:02:20.6]} 30. Rxe7 {[%clk 0:01:06.9]} 30...
Kxf4 {[%clk 0:02:21.1]} 31. Rxf7+ {[%clk 0:01:06.7]} 31... Kg3 {[%clk
0:02:21.6]} 32. Rxh7 {[%clk 0:01:07.6]} 32... Ra1# {[%clk 0:02:21.7]} 0-1

[Event "*** SCC Grand Prix: Titled Tuesday Blitz"]
[Site "Chess.com"]
[Date "2020.08.25"]
[Round "5"]
[White "StephenDedalus83"]
[Black "googlegoom"]
[Result "1-0"]
[WhiteElo "2735"]
[BlackElo "2442"]
[TimeControl "180+1"]
[EndTime "10:54:37 PDT"]
[Termination "StephenDedalus83 won by resignation"]

1. e4 {[%clk 0:03:00.9]} 1... c5 {[%clk 0:02:59.8]} 2. Nf3 {[%clk 0:03:01.3]}
2... Nc6 {[%clk 0:03:00.2]} 3. d4 {[%clk 0:03:01.6]} 3... cxd4 {[%clk
0:03:01.1]} 4. Nxd4 {[%clk 0:03:02]} 4... Qb6 {[%clk 0:03:01.8]} 5. Nb3 {[%clk
0:03:00.6]} 5... Nf6 {[%clk 0:03:02.2]} 6. Nc3 {[%clk 0:03:01]} 6... e6 {[%clk
0:03:02.6]} 7. Bd3 {[%clk 0:03:01]} 7... d6 {[%clk 0:03:02.6]} 8. Qe2 {[%clk
0:02:59.8]} 8... a6 {[%clk 0:03:02.8]} 9. f4 {[%clk 0:02:59.1]} 9... Qc7 {[%clk
0:03:02.4]} 10. Be3 {[%clk 0:02:58.8]} 10... b5 {[%clk 0:03:02.4]} 11. O-O-O
{[%clk 0:02:57.2]} 11... Bb7 {[%clk 0:03:01.2]} 12. g4 {[%clk 0:02:53]} 12... h6
{[%clk 0:03:01.2]} 13. h4 {[%clk 0:02:47.6]} 13... h5 {[%clk 0:03:01.3]} 14. g5
{[%clk 0:02:46.9]} 14... Ng4 {[%clk 0:03:01.8]} 15. Bg1 {[%clk 0:02:45.3]} 15...
g6 {[%clk 0:02:59.5]} 16. f5 {[%clk 0:02:42.4]} 16... Nce5 {[%clk 0:02:54]} 17.
Rh3 {[%clk 0:02:42.2]} 17... Bg7 {[%clk 0:02:45.3]} 18. f6 {[%clk 0:02:33.4]}
18... Bf8 {[%clk 0:02:44]} 19. Kb1 {[%clk 0:02:32.2]} 19... Rc8 {[%clk
0:02:27.4]} 20. Nd4 {[%clk 0:02:29.3]} 20... Nc4 {[%clk 0:02:18.8]} 21. Ndxb5
{[%clk 0:02:19.4]} 21... axb5 {[%clk 0:02:13.9]} 22. Nxb5 {[%clk 0:02:19.3]}
22... Qc6 {[%clk 0:01:52.2]} 23. Na7 {[%clk 0:02:17.7]} 23... Qc7 {[%clk
0:00:30]} 24. Nxc8 {[%clk 0:02:15.8]} 24... Na5 {[%clk 0:00:27.9]} 25. Bb5+
{[%clk 0:02:12.9]} 1-0

[Event "*** SCC Grand Prix: Titled Tuesday Blitz"]
[Site "Chess.com"]
[Date "2020.08.25"]
[Round "5"]
[White "Guenplen"]
[Black "londonkid"]
[Result "1-0"]
[WhiteElo "2890"]
[BlackElo "2449"]
[TimeControl "180+1"]
[EndTime "10:54:39 PDT"]
[Termination "Guenplen won by checkmate"]

1. d4 {[%clk 0:03:00.9]} 1... Nf6 {[%clk 0:02:58.3]} 2. Bf4 {[%clk 0:03:00.8]}
2... e6 {[%clk 0:02:58]} 3. e3 {[%clk 0:03:01.2]} 3... b6 {[%clk 0:02:57.9]} 4.
Qf3 {[%clk 0:02:57.2]} 4... Nc6 {[%clk 0:02:56]} 5. Nc3 {[%clk 0:02:55.8]} 5...
Bb7 {[%clk 0:02:56]} 6. O-O-O {[%clk 0:02:55.7]} 6... Bb4 {[%clk 0:02:50.7]} 7.
Nge2 {[%clk 0:02:55.1]} 7... O-O {[%clk 0:02:49.6]} 8. a3 {[%clk 0:02:52.6]}
8... Be7 {[%clk 0:02:40.7]} 9. Qh3 {[%clk 0:02:42.3]} 9... a6 {[%clk 0:02:36.8]}
10. Rg1 {[%clk 0:02:37]} 10... b5 {[%clk 0:02:36]} 11. g4 {[%clk 0:02:37.1]}
11... b4 {[%clk 0:02:33.5]} 12. axb4 {[%clk 0:02:38]} 12... Nxb4 {[%clk
0:02:32.1]} 13. g5 {[%clk 0:02:37]} 13... Nfd5 {[%clk 0:02:32.1]} 14. Nxd5
{[%clk 0:02:21.5]} 14... Bxd5 {[%clk 0:02:25.7]} 15. Nc3 {[%clk 0:02:19.9]}
15... c5 {[%clk 0:02:24.5]} 16. e4 {[%clk 0:01:56.9]} 16... cxd4 {[%clk
0:02:00.6]} 17. Rxd4 {[%clk 0:01:52.7]} 17... Qa5 {[%clk 0:01:49.6]} 18. exd5
{[%clk 0:01:39.1]} 18... Qa1+ {[%clk 0:01:47.7]} 19. Kd2 {[%clk 0:01:37.4]}
19... Qxb2 {[%clk 0:01:45.5]} 20. Bd3 {[%clk 0:01:33.2]} 20... g6 {[%clk
0:01:31.5]} 21. Rb1 {[%clk 0:01:24.3]} 21... Qa3 {[%clk 0:01:23.1]} 22. Be5
{[%clk 0:01:18.8]} 22... Rac8 {[%clk 0:01:20.8]} 23. Qxh7+ {[%clk 0:01:15.1]}
23... Kxh7 {[%clk 0:01:19.2]} 24. Rh4+ {[%clk 0:01:14.9]} 24... Kg8 {[%clk
0:01:19.6]} 25. Rh8# {[%clk 0:01:14.5]} 1-0

[Event "*** SCC Grand Prix: Titled Tuesday Blitz"]
[Site "Chess.com"]
[Date "2020.08.25"]
[Round "5"]
[White "bratkoo"]
[Black "HanSchut"]
[Result "0-1"]
[WhiteElo "2517"]
[BlackElo "2259"]
[TimeControl "180+1"]
[EndTime "10:54:58 PDT"]
[Termination "HanSchut won by resignation"]

1. e4 {[%clk 0:03:00.8]} 1... c5 {[%clk 0:02:59.6]} 2. Nf3 {[%clk 0:03:00.9]}
2... d6 {[%clk 0:03:00.3]} 3. d4 {[%clk 0:03:01]} 3... cxd4 {[%clk 0:03:00.9]}
4. Nxd4 {[%clk 0:03:01.9]} 4... Nf6 {[%clk 0:03:01.7]} 5. Nc3 {[%clk 0:03:02.2]}
5... a6 {[%clk 0:03:02.4]} 6. Bg5 {[%clk 0:03:02.3]} 6... e6 {[%clk 0:03:03.1]}
7. f4 {[%clk 0:03:02.6]} 7... Be7 {[%clk 0:03:03.7]} 8. Qf3 {[%clk 0:03:00.2]}
8... h6 {[%clk 0:03:04.1]} 9. Bh4 {[%clk 0:03:00.3]} 9... g5 {[%clk 0:03:03.9]}
10. fxg5 {[%clk 0:03:00.3]} 10... Nfd7 {[%clk 0:03:04.6]} 11. O-O-O {[%clk
0:02:58.5]} 11... Ne5 {[%clk 0:03:05]} 12. Qe2 {[%clk 0:02:57.7]} 12... hxg5
{[%clk 0:03:03.7]} 13. Bg3 {[%clk 0:02:57.8]} 13... Nbd7 {[%clk 0:03:04.3]} 14.
Kb1 {[%clk 0:02:57.4]} 14... Qc7 {[%clk 0:02:59.8]} 15. h3 {[%clk 0:02:57.5]}
15... b5 {[%clk 0:02:59.7]} 16. Qd2 {[%clk 0:02:55.6]} 16... Bb7 {[%clk
0:02:53]} 17. a3 {[%clk 0:02:34.9]} 17... O-O-O {[%clk 0:02:51.4]} 18. Ncxb5
{[%clk 0:02:35]} 18... axb5 {[%clk 0:02:48.4]} 19. Nxb5 {[%clk 0:02:34.3]} 19...
Qb6 {[%clk 0:01:54.4]} 20. Bf2 {[%clk 0:02:27.3]} 20... Nc5 {[%clk 0:01:54.7]}
21. b4 {[%clk 0:02:25.4]} 21... Bc6 {[%clk 0:01:44.9]} 22. bxc5 {[%clk
0:02:24.3]} 22... dxc5 {[%clk 0:01:35.9]} 23. Qc1 {[%clk 0:01:41.1]} 23... Rxd1
{[%clk 0:01:21.6]} 24. Qxd1 {[%clk 0:01:40.6]} 24... Bxb5 {[%clk 0:01:22.1]} 25.
Ka1 {[%clk 0:01:39.4]} 25... Bf6 {[%clk 0:01:15.6]} 26. Qb1 {[%clk 0:01:31.5]}
26... Nd3+ {[%clk 0:01:08.3]} 27. Ka2 {[%clk 0:01:31.5]} 27... Bc4+ {[%clk
0:01:08.1]} 0-1

[Event "*** SCC Grand Prix: Titled Tuesday Blitz"]
[Site "Chess.com"]
[Date "2020.08.25"]
[Round "5"]
[White "MarcoCorvi"]
[Black "BigAl"]
[Result "0-1"]
[WhiteElo "2238"]
[BlackElo "2468"]
[TimeControl "180+1"]
[EndTime "10:54:59 PDT"]
[Termination "BigAl won on time"]

1. c4 {[%clk 0:03:00.9]} 1... Nf6 {[%clk 0:02:59.3]} 2. Nc3 {[%clk 0:03:00.8]}
2... g6 {[%clk 0:02:59.7]} 3. g3 {[%clk 0:03:00]} 3... d6 {[%clk 0:03:00]} 4.
Bg2 {[%clk 0:02:59.9]} 4... Bg7 {[%clk 0:03:00.9]} 5. Nf3 {[%clk 0:03:00.3]}
5... O-O {[%clk 0:03:01.8]} 6. O-O {[%clk 0:03:00.7]} 6... e5 {[%clk 0:03:02]}
7. d4 {[%clk 0:03:01.1]} 7... Nbd7 {[%clk 0:03:01.5]} 8. dxe5 {[%clk 0:03:00.4]}
8... dxe5 {[%clk 0:03:01.4]} 9. Qc2 {[%clk 0:02:54.7]} 9... c6 {[%clk
0:03:00.6]} 10. Rd1 {[%clk 0:02:47.2]} 10... Qe7 {[%clk 0:02:54.7]} 11. Bg5
{[%clk 0:02:28.8]} 11... h6 {[%clk 0:02:53.5]} 12. Bxf6 {[%clk 0:02:27.4]} 12...
Nxf6 {[%clk 0:02:53.4]} 13. Nd2 {[%clk 0:02:19.6]} 13... Ne8 {[%clk 0:02:46.2]}
14. Nf1 {[%clk 0:02:00.3]} 14... f5 {[%clk 0:02:41.8]} 15. Rac1 {[%clk
0:01:48.7]} 15... Be6 {[%clk 0:02:33.8]} 16. b3 {[%clk 0:01:39.1]} 16... e4
{[%clk 0:02:27.4]} 17. Ne3 {[%clk 0:01:32.6]} 17... h5 {[%clk 0:02:22]} 18. h4
{[%clk 0:01:27.8]} 18... Bh6 {[%clk 0:02:21.4]} 19. Rd4 {[%clk 0:00:26.3]} 19...
Bxe3 {[%clk 0:02:10.4]} 20. fxe3 {[%clk 0:00:23.2]} 20... Qc7 {[%clk 0:02:10.4]}
21. Kf2 {[%clk 0:00:21.6]} 21... Nf6 {[%clk 0:02:10.9]} 22. Rcd1 {[%clk
0:00:06.1]} 22... Ng4+ {[%clk 0:02:09.4]} 23. Kg1 {[%clk 0:00:04.3]} 23... Qxg3
{[%clk 0:02:10.3]} 0-1

[Event "*** SCC Grand Prix: Titled Tuesday Blitz"]
[Site "Chess.com"]
[Date "2020.08.25"]
[Round "5"]
[White "EddieMarsalla"]
[Black "ChelsieMonica"]
[Result "1-0"]
[WhiteElo "2552"]
[BlackElo "2397"]
[TimeControl "180+1"]
[EndTime "10:55:01 PDT"]
[Termination "EddieMarsalla won on time"]

1. d4 {[%clk 0:03:00.9]} 1... Nf6 {[%clk 0:02:46]} 2. Bg5 {[%clk 0:02:56.5]}
2... c5 {[%clk 0:02:44.8]} 3. d5 {[%clk 0:02:51.4]} 3... d6 {[%clk 0:02:37.8]}
4. Nc3 {[%clk 0:02:50.4]} 4... h6 {[%clk 0:02:34]} 5. Bxf6 {[%clk 0:02:49.6]}
5... exf6 {[%clk 0:02:32]} 6. e3 {[%clk 0:02:50]} 6... f5 {[%clk 0:02:32]} 7.
Bd3 {[%clk 0:02:49.8]} 7... g6 {[%clk 0:02:32.4]} 8. a4 {[%clk 0:02:48.2]} 8...
Bg7 {[%clk 0:02:32.6]} 9. Nge2 {[%clk 0:02:48.7]} 9... O-O {[%clk 0:02:31.6]}
10. O-O {[%clk 0:02:48.8]} 10... Nd7 {[%clk 0:02:30.6]} 11. Rb1 {[%clk
0:02:48.7]} 11... a5 {[%clk 0:02:29.3]} 12. Nb5 {[%clk 0:02:45.4]} 12... Nb6
{[%clk 0:02:25.1]} 13. c4 {[%clk 0:02:42.5]} 13... Bd7 {[%clk 0:02:23.9]} 14.
Nxd6 {[%clk 0:02:33.8]} 14... Bxa4 {[%clk 0:02:22.1]} 15. b3 {[%clk 0:02:34]}
15... Qxd6 {[%clk 0:02:11.1]} 16. bxa4 {[%clk 0:02:33.5]} 16... Ra7 {[%clk
0:02:02.9]} 17. Rb5 {[%clk 0:02:31.8]} 17... Nd7 {[%clk 0:01:59.8]} 18. Qd2
{[%clk 0:02:31.6]} 18... b6 {[%clk 0:01:57.6]} 19. Rfb1 {[%clk 0:02:31.2]} 19...
Re8 {[%clk 0:01:50.7]} 20. Nc3 {[%clk 0:02:26.7]} 20... Be5 {[%clk 0:01:31.2]}
21. g3 {[%clk 0:02:24.9]} 21... Bxc3 {[%clk 0:01:31.3]} 22. Qxc3 {[%clk
0:02:24.3]} 22... Qe5 {[%clk 0:01:31.5]} 23. Qxe5 {[%clk 0:02:14]} 23... Re7
{[%clk 0:01:30.5]} 24. Qxe7 {[%clk 0:02:12.1]} 1-0